bitfinex-derivatives/quotes_SOLF0:USTF0_20250514
["timestamp","ask_amount","ask_price","bid_price","bid_amount"]
[1747222711293,5.511,181.45,181.42,5.5117]
[1747222711492,5.511,181.45,181.41,70.84]
[1747222712092,5.511,181.45,181.41,76.3518]
[1747222712393,5.511,181.45,181.41,70.84]
[1747222712790,5.511,181.45,181.41,76.352]
[1747222713400,5.5112,181.44,181.41,76.352]
[1747222713696,5.5112,181.44,181.41,70.84]
[1747222713896,5.5109,181.45,181.41,70.84]
[1747222714197,72.14,181.5,181.42,5.5115]
[1747222714497,5.5108,181.46,181.42,5.5115]
[1747222714795,72.14,181.5,181.41,5.5118]
[1747222715497,5.511,181.45,181.41,5.5118]
[1747222715701,5.511,181.45,181.42,5.5116]
[1747222715995,72.14,181.5,181.37,70.84]
[1747222716197,6.88996159,181.49,181.39,5.5124]
[1747222716397,7.87199885,181.49,181.39,5.5124]
[1747222716601,5.5115,181.43,181.39,5.5124]
[1747222717001,71.34,181.44,181.33,70.84]
[1747222718204,5.5118,181.42,181.38,5.5127]
[1747222719095,5.5121,181.41,181.38,5.5127]
[1747222719301,71.34,181.44,181.33,70.84]
[1747222719799,5.5124,181.4,181.33,70.84]
[1747222720795,5.5127,181.39,181.33,70.84]
[1747222721299,5.5124,181.4,181.33,70.84]
[1747222721503,5.5124,181.4,181.36,5.5133]
[1747222721700,71.34,181.44,181.33,70.84]
[1747222722002,5.5122,181.41,181.33,70.84]
[1747222722304,71.34,181.44,181.33,70.84]
[1747222722503,5.5121,181.41,181.37,5.513]
[1747222723002,5.5121,181.41,181.33,70.84]
[1747222723602,5.5121,181.41,181.38,5.5128]
[1747222723802,5.5124,181.4,181.38,5.5128]
[1747222724501,5.5124,181.4,181.37,5.5131]
[1747222725009,4.30931428,181.53,181.43,5.5112]
[1747222725211,73.02,181.51,181.38,75.14931428]
[1747222725510,5.5105,181.47,181.38,75.14931428]
[1747222726003,5.5098,181.49,181.42,5.5115]
[1747222726211,5.5098,181.49,181.38,75.14931428]
[1747222727008,368.30931428,181.5,181.38,70.84]
[1747222727411,5.5099,181.48,181.38,70.84]
[1747222727912,5.5099,181.48,181.44,5.5111]
[1747222729509,5.5096,181.49,181.38,70.84]
[1747222729817,72.82,181.48,181.38,70.84]
[1747222730112,72.82,181.48,181.38,75.14931428]
[1747222730712,72.82,181.48,181.46,5.5102]
[1747222731310,364.0,181.5,181.38,75.14931428]
[1747222731509,72.98,181.51,181.38,75.14931428]
[1747222731808,364.0,181.56,181.38,70.84]
[1747222732008,364.0,181.56,181.39,0.073]
[1747222732310,364.0,181.56,181.46,4.30931428]
[1747222732513,5.5069,181.59,181.47,75.94]
[1747222732715,5.507,181.58,181.52,5.5084]
[1747222732910,75.12,181.6,181.48,75.94]
[1747222733212,4.30931428,181.59,181.48,75.94]
[1747222733611,78.5418,181.61,181.48,75.94]
[1747222733915,76.7,181.6,181.48,75.94]
[1747222734112,76.7,181.6,181.55,5.5078]
[1747222734314,76.7,181.6,181.48,75.94]
[1747222734315,76.7,181.6,181.51,4.30931428]
[1747222734614,5.507,181.58,181.52,5.5086]
[1747222734911,5.507,181.58,181.48,80.24931428]
[1747222735214,81.00931428,181.6,181.48,75.94]
[1747222735815,5.4818,181.61,181.51,4.30931428]
[1747222736007,5.4818,181.61,181.48,75.94]
[1747222736208,5.4818,181.61,181.49,4.30931428]
[1747222736410,5.4818,181.61,181.55,5.5075]
[1747222736918,10.988,181.61,181.55,5.5076]
[1747222737114,5.4818,181.61,181.48,75.94]
[1747222737318,5.4818,181.61,181.48,80.24931428]
[1747222737513,5.5072,181.58,181.48,80.24931428]
[1747222738713,5.4818,181.61,181.48,80.24931428]
[1747222738912,4.29435088,181.74,181.59,4.29435088]
[1747222739109,5.5032,181.71,181.6,157.84]
[1747222739317,5.4739,181.73,181.6,157.84]
[1747222739714,3.7417,181.73,181.62,4.29435088]
[1747222740420,3.7417,181.73,181.64,5.5051]
[1747222741122,5.5027,181.72,181.64,5.5051]
[1747222741421,5.5027,181.72,181.65,5.5048]
[1747222742216,5.5027,181.72,181.64,5.505]
[1747222742422,3.7417,181.73,181.63,78.84]
[1747222744323,5.5032,181.71,181.66,5.5044]
[1747222744523,3.7417,181.73,181.66,5.5044]
[1747222744825,3.7417,181.73,181.63,78.84]
[1747222745024,5.5038,181.69,181.64,5.505]
[1747222745217,3.7417,181.73,181.63,78.84]
[1747222745522,3.7417,181.73,181.63,78.82]
[1747222745724,5.5041,181.68,181.63,84.3253]
[1747222745923,3.7417,181.73,181.63,78.82]
[1747222746226,5.505,181.65,181.61,78.8]
[1747222747223,5.505,181.65,181.61,84.3059]
[1747222748325,5.5045,181.66,181.62,5.5057]
[1747222748526,79.52,181.7,181.61,78.8]
[1747222748926,5.5048,181.65,181.61,84.3059]
[1747222749126,79.52,181.7,181.61,78.8]
[1747222749327,1.718,181.69,181.61,78.8]
[1747222750230,79.52,181.7,181.61,78.8]
[1747222750231,0.95830809,181.76,181.63,6.87291432]
[1747222750423,3.6559,181.82,181.64,79.18]
[1747222750625,5.5012,181.77,181.64,79.18]
[1747222750825,1.812,181.81,181.64,79.18]
[1747222751025,5.5015,181.76,181.71,5.5027]
[1747222751226,0.98048616,181.8,181.68,78.8]
[1747222751429,1.812,181.81,181.68,78.8]
[1747222751729,6.87291432,181.79,181.66,78.8]
[1747222751931,0.98049089,181.78,181.66,78.8]
[1747222752231,5.5027,181.72,181.66,78.8]
[1747222752527,78.78,181.76,181.63,78.78]
[1747222752728,5.5038,181.69,181.65,5.5047]
[1747222753526,6.87291432,181.75,181.63,78.78]
[1747222754032,5.4623,181.74,181.63,78.78]
[1747222754426,3.6419,181.74,181.63,78.78]
[1747222754729,9.1442,181.74,181.63,78.78]
[1747222755127,1.8204,181.79,181.63,78.78]
[1747222755341,5.5009,181.78,181.63,78.78]
[1747222755539,5.5009,181.78,181.67,6.87291432]
[1747222755834,3.636,181.82,181.68,81.78]
[1747222756136,3.636,181.82,181.69,81.68]
[1747222756839,5.5011,181.78,181.69,81.68]
[1747222757136,5.5011,181.78,181.74,5.5018]
[1747222757339,5.5004,181.8,181.69,81.68]
[1747222757839,5.5004,181.8,181.76,5.5014]
[1747222758538,5.5006,181.79,181.76,5.5014]
[1747222758740,454.35111432,181.87,181.77,5.501]
[1747222759044,81.34,181.86,181.77,5.501]
[1747222759236,82.3201511,181.86,181.69,81.68]
[1747222759437,81.34,181.86,181.69,81.68]
[1747222759740,5.4999,181.81,181.69,81.68]
[1747222760149,454.35111432,181.87,181.69,81.68]
[1747222760336,445.66,181.87,181.71,6.87291432]
[1747222760638,82.34012978,181.86,181.71,6.87291432]
[1747222761036,82.34012978,181.86,181.68,81.8487]
[1747222761037,81.42,181.86,181.72,163.08]
[1747222761341,5.4998,181.82,181.78,5.5006]
[1747222761539,81.42,181.86,181.78,5.5006]
[1747222761839,81.42,181.86,181.72,163.08]
[1747222762139,5.5008,181.79,181.75,5.5017]
[1747222762336,5.5008,181.79,181.68,6.94161432]
[1747222762537,5.5009,181.78,181.69,162.72]
[1747222762840,81.42,181.86,181.69,162.72]
[1747222763036,0.98014899,181.85,181.69,162.72]
[1747222763242,81.42,181.86,181.69,162.72]
[1747222763742,445.66,181.87,181.69,162.72]
[1747222764044,80.92,181.86,181.69,162.72]
[1747222764938,445.66,181.87,181.69,162.72]
[1747222765242,526.7,181.87,181.69,162.72]
[1747222765443,5.4991,181.84,181.72,6.87291432]
[1747222765837,5.4992,181.84,181.8,5.5]
[1747222766150,81.66,181.87,181.8,5.5]
[1747222766443,5.4992,181.84,181.8,5.5]
[1747222766646,81.66,181.87,181.8,5.5]
[1747222766945,81.66,181.87,181.79,5.5005]
[1747222767146,81.66,181.87,181.78,81.64]
[1747222767646,81.66,181.87,181.8,5.5002]
[1747222767945,3.6611,181.88,181.8,5.5002]
[1747222768248,3.6611,181.88,181.78,81.64]
[1747222768548,5.4985,181.86,181.81,5.4997]
[1747222768845,3.6611,181.88,181.78,81.64]
[1747222770346,5.4983,181.87,181.84,5.4989]
[1747222770644,3.6611,181.88,181.84,5.4989]
[1747222771046,3.6611,181.88,181.78,81.64]
[1747222771642,5.4985,181.86,181.83,5.4991]
[1747222771843,162.04,181.91,181.78,81.64]
[1747222772039,81.62,181.91,181.78,81.64]
[1747222772945,80.3,181.94,181.8,6.87291432]
[1747222773247,80.3,181.94,181.81,80.3]
[1747222773446,5.2402,181.96,181.81,80.3]
[1747222775341,5.4965,181.93,181.88,5.4976]
[1747222775542,5.2402,181.96,181.88,5.4976]
[1747222775745,5.4964,181.93,181.88,5.4976]
[1747222776043,364.0,181.98,181.87,81.6]
[1747222776353,450.1306,182.05,181.87,81.6]
[1747222776740,0.97918487,182.04,181.86,6.87291432]
[1747222776953,81.6,182.03,181.89,5.4974]
[1747222777149,81.6,182.03,181.87,163.36]
[1747222777452,5.4956,181.96,181.87,163.36]
[1747222777757,81.82,181.99,181.87,163.36]
[1747222777948,5.4964,181.93,181.88,5.4977]
[1747222778150,81.82,181.99,181.88,81.6]
[1747222778550,5.4967,181.92,181.88,87.0977]
[1747222778754,81.82,181.99,181.88,81.6]
[1747222779054,5.4966,181.93,181.88,87.0975]
[1747222779353,81.82,181.99,181.88,81.6]
[1747222779553,81.82,181.99,181.89,5.4972]
[1747222779953,81.64,181.98,181.88,81.6]
[1747222780151,81.64,181.98,181.89,5.4974]
[1747222780453,83.3,182.04,181.88,81.6]
[1747222780656,5.495,181.98,181.93,5.496]
[1747222780851,83.3,182.04,181.88,81.6]
[1747222781251,5.4953,181.97,181.92,5.4963]
[1747222781556,83.3,182.04,181.88,81.6]
[1747222781755,0.97920736,182.03,181.88,81.6]
[1747222781956,7.85212168,182.03,181.88,81.6]
[1747222782257,5.4959,181.95,181.88,81.58]
[1747222782556,90.17291432,182.04,181.88,81.58]
[1747222782753,5.4959,181.95,181.9,5.497]
[1747222783254,90.17291432,182.04,181.88,81.58]
[1747222783454,5.4959,181.95,181.88,81.58]
[1747222783858,5.4959,181.95,181.9,5.4972]
[1747222784052,6.87291432,182.0,181.88,81.58]
[1747222784257,170.56,181.99,181.88,81.58]
[1747222784450,1.7157,181.98,181.88,81.58]
[1747222784852,3.7407,181.97,181.9,5.4969]
[1747222785050,5.495,181.98,181.88,81.58]
[1747222785257,3.7407,182.02,181.88,81.58]
[1747222785459,3.7407,182.02,181.92,5.4963]
[1747222785657,5.4951,181.97,181.92,5.4963]
[1747222785959,3.7407,182.02,181.88,81.58]
[1747222786658,5.4954,181.97,181.92,5.4965]
[1747222787660,3.7407,182.02,181.93,5.496]
[1747222788148,3.7407,182.02,181.95,5.4957]
[1747222788559,3.7407,182.02,181.88,81.6426]
[1747222789259,3.7407,182.02,181.92,5.4965]
[1747222789560,3.7407,182.02,181.88,81.6426]
[1747222789766,5.4953,181.97,181.92,5.4965]
[1747222789961,3.7407,182.02,181.92,5.4965]
[1747222790565,91.3,182.01,181.88,81.6426]
[1747222791063,5.4948,181.98,181.93,5.496]
[1747222791262,91.3,182.01,181.88,81.6426]
[1747222791463,5.4948,181.98,181.88,81.6426]
[1747222791767,91.3,182.01,181.88,81.6426]
[1747222791958,5.4946,181.99,181.95,5.4957]
[1747222792354,3.7407,182.02,181.88,81.6426]
[1747222792664,1.7157,182.06,181.93,9.7896178]
[1747222792863,1.7157,182.06,181.94,93.0]
[1747222793067,5.4933,182.03,182.0,5.4942]
[1747222793365,1.7157,182.06,181.94,93.0]
[1747222793564,5.4934,182.03,181.98,5.4945]
[1747222793765,1.7157,182.06,181.94,93.0]
[1747222794070,1.7157,182.06,181.89,475.08]
[1747222794269,1.7157,182.06,181.96,5.4954]
[1747222794464,1.7157,182.06,181.9,186.04]
[1747222794766,5.4939,182.01,181.9,186.04]
[1747222795165,1.7157,182.06,181.9,186.04]
[1747222795367,5.4945,182.0,181.95,5.4954]
[1747222795566,1.7157,182.06,181.9,186.04]
[1747222795768,5.4939,182.01,181.97,5.4951]
[1747222795962,9.78892599,182.08,181.9,186.04]
[1747222796166,93.18,182.07,181.9,186.04]
[1747222796371,5.4936,182.02,181.91,9.78892599]
[1747222796667,93.18,182.07,181.91,9.78892599]
[1747222796871,1.7465,182.06,181.91,9.78892599]
[1747222797276,1.7465,182.06,181.92,92.98]
[1747222797775,1.7465,182.06,181.95,5.4954]
[1747222798272,5.4944,182.0,181.95,5.4954]
[1747222798479,5.4944,182.0,181.96,5.4952]
[1747222800181,1.7465,182.06,181.92,92.98]
[1747222800581,9.78892599,182.04,181.92,92.98]
[1747222800776,5.4953,181.97,181.92,92.98]
[1747222801084,91.92,182.0,181.92,92.98]
[1747222801583,91.92,182.0,181.94,5.4959]
[1747222801584,5.495,181.98,181.94,5.4959]
[1747222802084,91.92,182.0,181.92,92.98]
[1747222802382,91.92,182.0,181.94,5.4959]
[1747222802576,94.9705,182.03,181.92,92.98]
[1747222803385,3.5905,182.03,181.92,99.0992401]
[1747222804085,9.0841,182.03,181.92,99.0992401]
[1747222804387,3.5905,182.03,181.92,99.0992401]
[1747222804582,3.5905,182.03,181.92,92.98]
[1747222804978,6.1192401,182.02,181.89,475.08]
[1747222805176,90.94,182.01,181.9,92.98]
[1747222805685,90.94,182.01,181.91,5.4966]
[1747222805981,90.94,182.01,181.85,92.98]
[1747222806387,183.92,182.01,181.89,5.4972]
[1747222806588,183.92,182.01,181.85,92.98]
[1747222807284,9.79327763,181.99,181.85,92.98]
[1747222807485,1.7473,181.98,181.87,5.4979]
[1747222807786,1.7473,181.98,181.85,92.98]
[1747222808188,1.7473,181.98,181.86,5.4984]
[1747222808583,5.4973,181.9,181.85,98.4787]
[1747222808789,91.0,181.94,181.85,98.4787]
[1747222809489,91.0,181.94,181.86,5.4984]
[1747222809685,5.4968,181.92,181.86,5.4984]
[1747222810188,91.0,181.94,181.85,92.98]
[1747222810887,5.4966,181.92,181.88,5.4978]
[1747222811489,5.4963,181.93,181.85,92.98]
[1747222811790,1.7473,181.98,181.85,92.98]
[1747222811791,90.64,181.97,181.85,92.98]
[1747222812091,90.6,182.0,181.88,9.79327763]
[1747222812588,5.4956,181.96,181.91,5.4968]
[1747222812788,90.6,182.0,181.91,5.4968]
[1747222813288,90.6,182.0,181.9,5.4971]
[1747222813694,90.6,182.0,181.88,9.79327763]
[1747222813897,90.6,182.0,181.91,5.4966]
[1747222814295,5.4968,181.92,181.87,5.4979]
[1747222814488,90.6,182.0,181.87,5.4979]
[1747222814790,5.4969,181.92,181.87,5.4979]
[1747222814996,90.6,182.0,181.87,5.4979]
[1747222815193,90.6,182.0,181.86,90.12]
[1747222815396,5.4969,181.92,181.86,90.12]
[1747222815593,90.6,182.0,181.86,90.12]
[1747222815898,5.4961,181.94,181.86,90.12]
[1747222816293,5.4961,181.94,181.9,5.4972]
[1747222816795,90.6,182.0,181.89,5.4975]
[1747222816995,90.6,182.0,181.86,90.12]
[1747222817388,5.4962,181.94,181.86,90.12]
[1747222817792,5.4962,181.94,181.89,5.4972]
[1747222817991,5.4954,181.96,181.86,90.12]
[1747222818194,89.46,181.97,181.86,90.12]
[1747222818394,89.46,181.97,181.89,5.4974]
[1747222819200,5.4962,181.94,181.9,5.4971]
[1747222819803,5.4962,181.94,181.91,5.4969]
[1747222820201,5.4949,181.98,181.88,9.79327763]
[1747222820401,88.94,182.02,181.88,9.79327763]
[1747222820703,5.4959,181.95,181.88,9.79327763]
[1747222821004,5.4959,181.95,181.91,5.4968]
[1747222821300,88.94,182.02,181.88,9.79327763]
[1747222821497,88.94,182.02,181.86,90.12]
[1747222822003,5.4965,181.93,181.86,90.12]
[1747222822302,88.94,182.02,181.89,5.4975]
[1747222822802,88.94,182.02,181.88,5.4976]
[1747222822992,88.94,182.02,181.86,90.12]
[1747222823192,5.4966,181.93,181.86,90.12]
[1747222823600,88.44,181.96,181.89,5.4974]
[1747222823801,5.4968,181.92,181.86,90.12]
[1747222824004,88.44,181.96,181.86,90.12]
[1747222824403,5.4965,181.93,181.86,90.12]
[1747222824604,1.8295,181.95,181.86,90.12]
[1747222825706,5.4965,181.93,181.89,5.4973]
[1747222825905,5.4965,181.93,181.86,90.12]
[1747222826304,5.4961,181.94,181.86,90.12]
[1747222826606,87.54,181.98,181.86,90.12]
[1747222826807,1.8295,182.0,181.88,9.79327763]
[1747222827209,1.8295,182.0,181.89,89.94]
[1747222827508,364.0,182.01,181.89,90.0062]
[1747222827907,5.4945,181.99,181.89,90.0062]
[1747222828503,364.0,182.01,181.89,90.0062]
[1747222829013,364.0,182.01,181.95,5.4956]
[1747222829407,5.4947,181.99,181.95,5.4956]
[1747222829704,91.7357,182.04,181.92,90.12]
[1747222830106,5.4944,182.0,181.92,90.12]
[1747222830307,91.7357,182.04,181.95,5.4957]
[1747222830715,91.7357,182.04,181.92,90.12]
[1747222831313,5.4952,181.97,181.92,90.12]
[1747222831503,1.9047,182.03,181.92,95.6166]
[1747222831908,5.4954,181.96,181.92,95.6166]
[1747222832109,1.9047,182.03,181.93,5.4961]
[1747222832305,5.495,181.98,181.93,5.4961]
[1747222833006,1.9047,182.03,181.93,5.4961]
[1747222833417,5.4943,182.0,181.92,90.12]
[1747222833610,88.74,182.01,181.92,90.12]
[1747222835011,5.4951,181.97,181.92,90.12]
[1747222835608,5.4954,181.96,181.92,90.12]
[1747222835808,88.74,182.01,181.92,90.12]
[1747222836118,5.4958,181.95,181.92,90.12]
[1747222836316,88.74,182.01,181.92,90.12]
[1747222837007,88.74,182.01,181.87,90.12]
[1747222837211,88.74,182.01,181.9,5.497]
[1747222837517,88.74,182.01,181.87,90.12]
[1747222837719,5.496,181.94,181.87,90.12]
[1747222838716,88.74,182.01,181.87,90.12]
[1747222839218,5.4958,181.95,181.9,5.4969]
[1747222839712,88.74,182.01,181.9,5.4969]
[1747222840212,90.12,182.0,181.9,5.4969]
[1747222840419,90.12,182.0,181.88,5.4976]
[1747222840619,6.12059626,181.99,181.88,5.4976]
[1747222840916,6.12059626,181.99,181.85,87.28]
[1747222841108,5.4965,181.93,181.85,87.28]
[1747222841511,87.14,181.95,181.85,93.40059626]
[1747222841813,1.852,181.94,181.85,93.40059626]
[1747222842007,1.852,181.94,181.85,87.28]
[1747222842411,89.132,181.94,181.85,87.28]
[1747222842614,89.132,181.94,181.83,5.4993]
[1747222843120,5.4982,181.87,181.83,5.4993]
[1747222843815,5.4985,181.86,181.82,6.12059626]
[1747222844417,5.4985,181.86,181.82,11.62019626]
[1747222845219,5.4982,181.87,181.83,5.4991]
[1747222845719,86.68,181.89,181.85,5.4985]
[1747222846320,92.1776,181.89,181.8,562.26]
[1747222847117,92.1776,181.89,181.85,5.4985]
[1747222847322,86.68,181.89,181.8,562.26]
[1747222847521,86.68,181.89,181.87,5.498]
[1747222847924,86.68,181.89,181.8,562.26]
[1747222848622,88.0,181.93,181.8,562.26]
[1747222848820,5.497,181.91,181.8,562.26]
[1747222849925,5.497,181.91,181.88,5.4977]
[1747222850324,5.4966,181.92,181.8,562.26]
[1747222850627,87.7,181.93,181.88,5.4976]
[1747222851323,87.7,181.93,181.8,562.26]
[1747222851823,5.4975,181.89,181.84,5.4988]
[1747222852424,5.4971,181.91,181.8,562.26]
[1747222852629,87.7,181.93,181.83,9.80231841]
[1747222853020,5.4974,181.9,181.86,5.4982]
[1747222853730,5.4974,181.9,181.8,562.26]
[1747222854432,5.497,181.91,181.8,562.26]
[1747222854633,87.7,181.93,181.87,5.4979]
[1747222855632,5.4974,181.9,181.87,5.4979]
[1747222856531,5.4974,181.9,181.86,5.4983]
[1747222856732,5.4975,181.89,181.86,5.4983]
[1747222856934,87.7,181.93,181.86,5.4983]
[1747222857232,5.4977,181.89,181.8,562.26]
[1747222857534,87.7,181.93,181.8,562.26]
[1747222857734,5.4986,181.86,181.82,5.4994]
[1747222858729,5.4987,181.85,181.82,5.4994]
[1747222858934,5.4987,181.85,181.8,562.26]
[1747222859134,87.7,181.93,181.8,562.26]
[1747222859330,87.7,181.93,181.82,5.4996]
[1747222860138,87.7,181.93,181.83,5.4992]
[1747222860347,5.4984,181.87,181.83,5.4992]
[1747222860940,87.7,181.93,181.8,562.26]
[1747222862837,87.7,181.93,181.82,5.4994]
[1747222863338,5.4986,181.86,181.82,5.4994]
[1747222863538,87.7,181.93,181.83,5.4992]
[1747222864339,5.4983,181.87,181.83,5.4992]
[1747222865040,5.4979,181.88,181.84,5.499]
[1747222865237,93.82648221,181.93,181.8,562.26]
[1747222865741,5.4975,181.89,181.81,6.12648221]
[1747222866342,5.4975,181.89,181.85,5.4985]
[1747222866642,5.4978,181.88,181.85,5.4985]
[1747222866842,84.84,181.91,181.85,5.4987]
[1747222867241,84.84,181.91,181.8,568.38648221]
[1747222867242,5.4973,181.9,181.8,568.38648221]
[1747222867445,84.84,181.91,181.85,5.4986]
[1747222867743,84.84,181.91,181.8,568.38648221]
[1747222867944,84.84,181.91,181.86,5.4982]
[1747222868144,84.72,181.92,181.86,5.4982]
[1747222868346,5.4974,181.9,181.86,5.4982]
[1747222868544,84.6,181.92,181.86,5.4982]
[1747222868845,84.6,181.92,181.84,5.4988]
[1747222869045,1.789,181.91,181.84,5.4988]
[1747222869343,5.4981,181.88,181.85,5.4986]
[1747222869544,1.789,181.91,181.85,5.4986]
[1747222869845,5.4977,181.89,181.82,5.4995]
[1747222870547,1.789,181.91,181.8,568.38648221]
[1747222870847,1.789,181.91,181.83,6.12648221]
[1747222871040,5.498,181.88,181.83,11.62568221]
[1747222871240,1.789,181.91,181.8,568.38648221]
[1747222871544,5.4983,181.87,181.81,5.4996]
[1747222871843,1.789,181.91,181.8,568.38648221]
[1747222872146,5.4985,181.86,181.82,5.4996]
[1747222872847,1.789,181.91,181.8,568.38648221]
[1747222873037,1.789,181.91,181.83,6.12648221]
[1747222873243,5.4986,181.86,181.83,11.62578221]
[1747222873647,5.4986,181.86,181.83,6.12648221]
[1747222873946,5.4982,181.87,181.83,11.62558221]
[1747222874147,1.789,181.91,181.83,6.12648221]
[1747222874942,1.789,181.91,181.84,5.4988]
[1747222875143,5.4981,181.88,181.84,5.4988]
[1747222875543,1.789,181.91,181.83,11.62578221]
[1747222876547,5.4983,181.87,181.83,11.62578221]
[1747222876747,1.789,181.91,181.83,6.12648221]
[1747222877548,5.4981,181.88,181.84,5.4988]
[1747222877850,1.789,181.91,181.83,6.12648221]
[1747222878039,5.4977,181.89,181.85,5.4985]
[1747222878246,1.789,181.91,181.83,6.12648221]
[1747222878850,1.789,181.91,181.85,5.4986]
[1747222879253,1.789,181.91,181.83,6.12648221]
[1747222879752,1.789,181.91,181.8,568.38648221]
[1747222879951,1.789,181.91,181.8,562.26]
[1747222880153,1.8038,181.9,181.8,562.26]
[1747222880650,5.4985,181.86,181.82,5.4994]
[1747222881353,5.4982,181.87,181.83,5.4993]
[1747222881547,1.8038,181.9,181.83,5.4993]
[1747222881753,1.8038,181.9,181.8,87.28]
[1747222882355,5.4993,181.84,181.8,92.7802]
[1747222882754,5.4993,181.84,181.8,87.28]
[1747222883154,1.8038,181.9,181.8,87.28]
[1747222883649,5.4982,181.87,181.83,5.4993]
[1747222884551,5.4985,181.86,181.82,5.4994]
[1747222884753,1.8038,181.9,181.8,93.40648221]
[1747222885253,5.4979,181.88,181.84,5.4988]
[1747222885454,1.8038,181.9,181.8,93.40648221]
[1747222885654,1.8038,181.9,181.8,87.28]
[1747222885854,5.4986,181.86,181.82,5.4994]
[1747222886254,5.4986,181.86,181.8,87.28]
[1747222886653,1.8038,181.9,181.8,87.28]
[1747222886854,1.8038,181.9,181.82,5.4994]
[1747222887060,5.4987,181.86,181.82,5.4994]
[1747222887365,1.8038,181.9,181.82,5.4994]
[1747222888153,5.4984,181.87,181.83,5.4993]
[1747222888349,1.8038,181.9,181.8,87.28]
[1747222888553,5.4986,181.86,181.82,5.4995]
[1747222888753,1.8038,181.9,181.82,5.4995]
[1747222888957,1.8038,181.9,181.8,87.28]
[1747222889455,1.8038,181.9,181.83,5.4993]
[1747222889860,5.4986,181.86,181.82,5.4995]
[1747222890062,5.4986,181.86,181.8,87.28]
[1747222890559,5.4986,181.86,181.82,5.4994]
[1747222890759,1.8038,181.9,181.8,87.28]
[1747222890956,81.72,181.89,181.8,87.28]
[1747222891355,81.72,181.89,181.74,87.84648221]
[1747222891559,6.12648221,181.85,181.76,5.5012]
[1747222891752,83.9834,181.84,181.73,475.24]
[1747222891954,6.12648221,181.82,181.69,81.72]
[1747222892155,1.8069,181.81,181.69,81.72]
[1747222892357,5.5025,181.73,181.69,81.72]
[1747222892551,80.14,181.77,181.7,5.5032]
[1747222892753,80.14,181.77,181.69,81.72]
[1747222892957,3.6583,181.76,181.64,563.12648221]
[1747222893757,5.5021,181.74,181.68,5.5038]
[1747222893961,3.6583,181.76,181.64,563.12648221]
[1747222894466,5.502,181.75,181.64,563.12648221]
[1747222894662,3.6583,181.76,181.64,563.12648221]
[1747222894855,9.1598,181.76,181.64,563.12648221]
[1747222895464,3.6583,181.76,181.64,563.12648221]
[1747222895860,3.6583,181.76,181.67,6.12648221]
[1747222896964,3.6583,181.76,181.73,5.5022]
[1747222897866,3.6583,181.76,181.67,6.12648221]
[1747222898061,9.1599,181.76,181.67,6.12648221]
[1747222898566,3.6583,181.76,181.72,5.5026]
[1747222899363,9.1598,181.76,181.72,5.5026]